[Event "25th European Club Cup Women 2021"]
[Site "Struga"]
[Date "2021.09.20"]
[Round "3.2"]
[White "Heinemann, Josefine"]
[Black "Dzagnidze, Nana"]
[Result "0-1"]
[ECO "B10"]
[WhiteElo "2292"]
[BlackElo "2525"]
[Annotator "ChessBase"]
[PlyCount "56"]
[EventDate "2021.09.18"]
[EventType "team-tourn"]
[EventCountry "MKD"]
[SourceTitle "playchess.com"]
[Source "ChessBase"]
[SourceQuality "1"]
[TimeControl "40/5400+30:1800+30"]

1. e4 {[%emt 0:00:03]} c6 {[%emt 0:00:05]} 2. Nf3 {[%emt 0:00:30]} d5 {[%emt 0:
00:09]} 3. d3 {[%emt 0:00:05]} dxe4 {[%emt 0:01:52]} 4. dxe4 {[%emt 0:00:04]}
Qxd1+ {[%emt 0:00:16]} 5. Kxd1 {[%emt 0:00:05]} Nf6 {[%emt 0:00:55]} 6. Nfd2 {
[%emt 0:00:34]} Ng4 {[%emt 0:02:26]} 7. Ke1 {[%emt 0:04:18]} e5 {[%emt 0:00:30]
} 8. Nb3 {[%emt 0:02:37]} f5 {[%emt 0:02:55]} 9. N1d2 {[%emt 0:07:59]} Nf6 {
[%emt 0:16:07]} 10. Bd3 {[%emt 0:04:01]} g6 {[%emt 0:02:57]} 11. f3 {[%emt 0:
04:50]} Be6 {[%emt 0:01:44]} 12. Kf2 {[%emt 0:04:25]} Nbd7 {[%emt 0:04:54]} 13.
Re1 {[%emt 0:04:35]} O-O-O {[%emt 0:00:19]} 14. exf5 {[%emt 0:04:27]} gxf5 {
[%emt 0:00:18]} 15. Bc4 {[%emt 0:00:28]} Nd5 {[%emt 0:04:39]} 16. a4 {[%emt 0:
03:34]} Re8 {[%emt 0:08:05]} 17. g3 {[%emt 0:06:37]} Nb4 {[%emt 0:09:12]} 18.
Bd3 {[%emt 0:05:29]} h5 {[%emt 0:00:32]} 19. Re2 {[%emt 0:04:26]} h4 {[%emt 0:
02:21]} 20. Kg2 {[%emt 0:04:29]} hxg3 {[%emt 0:11:04]} 21. hxg3 {[%emt 0:00:30]
} Re7 {[%emt 0:02:39]} 22. Na5 {[%emt 0:05:29]} Nxd3 {[%emt 0:02:53]} 23. cxd3
{[%emt 0:00:09]} Bd5 {[%emt 0:01:14]} 24. Nac4 {[%emt 0:09:51]} Reh7 {[%emt 0:
00:45]} 25. Nf1 {[%emt 0:02:46]} e4 {[%emt 0:00:28]} 26. Ncd2 {[%emt 0:00:45]}
exd3 {[%emt 0:06:10]} 27. Re3 {[%emt 0:02:46]} Bc5 {[%emt 0:01:44]} 28. Rxd3 {
[%emt 0:00:43]} Rh1 {[%emt 0:00:14]} 0-1

[Event "25th European Club Cup Women 2021"]
[Site "Struga"]
[Date "2021.09.20"]
[Round "3.3"]
[White "Paehtz, Elisabeth"]
[Black "Dordzhieva, Dinara"]
[Result "1-0"]
[ECO "C54"]
[WhiteElo "2465"]
[BlackElo "2303"]
[Annotator "ChessBase"]
[PlyCount "109"]
[EventDate "2021.09.18"]
[EventType "team-tourn"]
[EventCountry "MKD"]
[SourceTitle "playchess.com"]
[Source "ChessBase"]
[SourceQuality "1"]
[TimeControl "40/5400+30:1800+30"]

1. e4 {[%emt 0:00:02]} e5 {[%emt 0:00:10]} 2. Nf3 {[%emt 0:00:57]} Nc6 {
[%emt 0:00:04]} 3. Bc4 {[%emt 0:00:09]} Bc5 {[%emt 0:00:05]} 4. d3 {[%emt 0:01:
27]} Nf6 {[%emt 0:00:07]} 5. c3 {[%emt 0:00:55]} d6 {[%emt 0:00:12]} 6. Bb3 {
[%emt 0:00:45]} a5 {[%emt 0:01:21]} 7. h3 {[%emt 0:00:48]} h6 {[%emt 0:00:28]}
8. Nbd2 {[%emt 0:05:38]} O-O {[%emt 0:01:14]} 9. O-O {[%emt 0:01:40]} Ba7 {
[%emt 0:00:36]} 10. Re1 {[%emt 0:01:43]} Ne7 {[%emt 0:01:18]} 11. Nf1 {[%emt 0:
01:07]} Ng6 {[%emt 0:00:19]} 12. Ng3 {[%emt 0:01:19]} Be6 {[%emt 0:01:33]} 13.
d4 {[%emt 0:01:55]} Qc8 {[%emt 0:11:02]} 14. Be3 {[%emt 0:07:45]} Re8 {[%emt 0:
05:26]} 15. Bc2 {[%emt 0:03:22]} Qb8 {[%emt 0:08:37]} 16. Qd2 {[%emt 0:02:41]}
Kh7 {[%emt 0:11:38]} 17. Nf5 {[%emt 0:03:42]} Ng8 {[%emt 0:00:52]} 18. Nh2 {
[%emt 0:09:02]} f6 {[%emt 0:04:41]} 19. Ng3 {[%emt 0:11:13]} b5 {[%emt 0:10:30]
} 20. Nh5 {[%emt 0:04:27]} Bf7 {[%emt 0:12:40]} 21. f4 {[%emt 0:03:45]} Nxf4 {
[%emt 0:09:02]} 22. Nxf4 {[%emt 0:00:17]} exf4 {[%emt 0:00:02]} 23. Bxf4 {
[%emt 0:01:37]} Bg6 {[%emt 0:00:03]} 24. Kh1 {[%emt 0:02:46]} Kh8 {[%emt 0:03:
24]} 25. Nf1 {[%emt 0:10:38]} Qb7 {[%emt 0:02:47]} 26. Ng3 {[%emt 0:00:05]} c5
{[%emt 0:06:53]} 27. Bb3 {[%emt 0:06:34]} Rad8 {[%emt 0:01:05]} 28. Bd5 {
[%emt 0:01:22]} Qb6 {[%emt 0:00:10]} 29. Rad1 {[%emt 0:00:29]} Kh7 {[%emt 0:03:
29]} 30. h4 {[%emt 0:01:48]} Kh8 {[%emt 0:00:04]} 31. h5 {[%emt 0:01:42]} Bh7 {
[%emt 0:00:03]} 32. Bf7 {[%emt 0:01:40]} Re7 {[%emt 0:00:43]} 33. Bg6 {[%emt 0:
05:02]} Bxg6 {[%emt 0:01:00]} 34. hxg6 {[%emt 0:00:03]} Qc6 {[%emt 0:00:02]}
35. dxc5 {[%emt 0:06:14]} Bxc5 {[%emt 0:00:32]} 36. Qe2 {[%emt 0:01:49]} Re6 {
[%emt 0:02:59]} 37. Qg4 {[%emt 0:00:40]} Qe8 {[%emt 0:01:20]} 38. Re2 {[%emt 0:
00:54]} Rd7 {[%emt 0:01:44]} 39. Rd5 {[%emt 0:00:46]} f5 {[%emt 0:00:45]} 40.
exf5 {[%emt 0:00:00]} Rxe2 {[%emt 0:00:00]} 41. Qxe2 {[%emt 0:00:43]} Re7 {
[%emt 0:00:54]} 42. Qf3 {[%emt 0:04:48]} Re1+ {[%emt 0:01:03]} 43. Kh2 {
[%emt 0:01:17]} Rb1 {[%emt 0:14:49]} 44. Rd2 {[%emt 0:04:25]} Qd8 {[%emt 0:04:
23]} 45. Kh3 {[%emt 0:00:50]} Nf6 {[%emt 0:01:06]} 46. Re2 {[%emt 0:03:19]} b4
{[%emt 0:02:09]} 47. cxb4 {[%emt 0:04:18]} axb4 {[%emt 0:00:10]} 48. Qc6 {
[%emt 0:02:41]} Ra1 {[%emt 0:01:07]} 49. Re6 {[%emt 0:01:32]} Bf2 {[%emt 0:01:
01]} 50. Qxd6 {[%emt 0:01:06]} Qxd6 {[%emt 0:03:46]} 51. Rxd6 {[%emt 0:00:07]}
Bxg3 {[%emt 0:00:25]} 52. Rd8+ {[%emt 0:00:08]} Ng8 {[%emt 0:00:03]} 53. Kxg3 {
[%emt 0:00:08]} Rxa2 {[%emt 0:00:04]} 54. Be5 {[%emt 0:00:42]} Ra6 {[%emt 0:00:
57]} 55. Rb8 {[%emt 0:00:30]} 1-0

[Event "25th European Club Cup Women 2021"]
[Site "Struga"]
[Date "2021.09.20"]
[Round "3.4"]
[White "Hrescak, Ivana"]
[Black "Skripchenko, Almira"]
[Result "1/2-1/2"]
[ECO "D27"]
[WhiteElo "2142"]
[BlackElo "2396"]
[Annotator "NA"]
[PlyCount "60"]
[EventDate "2021.09.18"]
[EventType "team-tourn"]
[EventCountry "MKD"]
[SourceTitle "playchess.com"]
[Source "ChessBase"]
[SourceQuality "1"]
[TimeControl "40/5400+30:1800+30"]

1. d4 {[%emt 0:00:03]} d5 {[%emt 0:00:28]} 2. c4 {[%emt 0:00:06]} dxc4 {
[%emt 0:00:06]} 3. Nf3 {[%emt 0:00:04]} e6 {[%emt 0:00:19]} 4. e3 {[%emt 0:00:
14]} c5 {[%emt 0:01:07]} 5. Bxc4 {[%emt 0:00:16]} Nf6 {[%emt 0:00:25]} 6. O-O {
[%emt 0:00:21]} a6 {[%emt 0:01:09]} 7. dxc5 {[%emt 0:07:01]} Qxd1 {[%emt 0:01:
04]} 8. Rxd1 {[%emt 0:00:01]} Bxc5 {[%emt 0:00:10]} 9. a3 {[%emt 0:03:40]} b5 {
[%emt 0:07:33]} 10. Be2 {[%emt 0:00:09]} Bb7 {[%emt 0:00:05]} 11. b4 {[%emt 0:
00:50]} Be7 {[%emt 0:00:07]} 12. Bb2 {[%emt 0:00:08]} Nbd7 {[%emt 0:00:07]} 13.
Nbd2 {[%emt 0:02:54]} Rc8 {[%emt 0:03:16]} 14. Rac1 {[%emt 0:03:22]} O-O {
[%emt 0:00:07]} 15. Nb3 {[%emt 0:08:01]} Bd5 {[%emt 0:04:10]} 16. Nfd2 {
[%emt 0:06:13]} Nb6 {[%emt 0:00:18]} 17. Bd4 {[%emt 0:01:56]} Na4 {[%emt 0:17:
20]} 18. Rxc8 {[%emt 0:09:59]} Rxc8 {[%emt 0:00:09]} 19. Rc1 {[%emt 0:01:11]}
Rxc1+ {[%emt 0:00:50]} 20. Nxc1 {[%emt 0:00:01]} Nd7 {[%emt 0:04:13]} 21. e4 {
[%emt 0:04:32]} Ba8 {[%emt 0:06:06]} 22. f4 {[%emt 0:00:44]} Nab6 {[%emt 0:06:
48]} 23. Ncb3 {[%emt 0:06:53]} f6 {[%emt 0:02:41]} 24. Be3 {[%emt 0:02:00]} Kf7
{[%emt 0:00:40]} 25. Bd3 {[%emt 0:01:47]} Na4 {[%emt 0:04:27]} 26. Bc2 {
[%emt 0:02:36]} e5 {[%emt 0:04:31]} 27. f5 {[%emt 0:03:01]} Bd6 {[%emt 0:08:19]
} 28. Kf2 {[%emt 0:03:17]} Ke7 {[%emt 0:03:50]} 29. Na5 {[%emt 0:04:53]} Nc3 {
[%emt 0:03:46]} 30. Nab3 {[%emt 0:01:58]} Na4 {[%emt 0:00:26]} 1/2-1/2

[Event "25th European Club Cup Women 2021"]
[Site "Struga"]
[Date "2021.09.20"]
[Round "3.6"]
[White "Gunina, Valentina"]
[Black "Cvitan, Ena"]
[Result "0-1"]
[ECO "D37"]
[WhiteElo "2446"]
[BlackElo "2284"]
[Annotator "NA"]
[PlyCount "138"]
[EventDate "2021.09.18"]
[EventType "team-tourn"]
[EventCountry "MKD"]
[SourceTitle "playchess.com"]
[Source "ChessBase"]
[SourceQuality "1"]
[TimeControl "40/5400+30:1800+30"]

1. d4 {[%emt 1:31:00]} d5 {[%emt 0:00:16]} 2. c4 {[%emt 0:00:00]} e6 {[%emt 0:
00:08]} 3. Nf3 {[%emt 0:00:00]} a6 {[%emt 0:01:05]} 4. cxd5 {[%emt 0:00:00]}
exd5 {[%emt 0:00:08]} 5. Nc3 {[%emt 0:00:00]} Nf6 {[%emt 0:00:22]} 6. Bg5 {
[%emt 0:00:00]} Be6 {[%emt 0:00:19]} 7. e3 {[%emt 0:00:00]} Nbd7 {[%emt 0:00:
29]} 8. Bd3 {[%emt 0:00:00]} Bd6 {[%emt 0:00:28]} 9. O-O {[%emt 0:00:00]} c6 {
[%emt 0:00:20]} 10. h3 {[%emt 0:00:00]} Qc7 {[%emt 0:02:28]} 11. Qd2 {[%emt 0:
00:00]} h6 {[%emt 0:01:49]} 12. Bf4 {[%emt 0:00:00]} g5 {[%emt 0:00:33]} 13.
Bxd6 {[%emt 0:00:00]} Qxd6 {[%emt 0:00:09]} 14. Nh2 {[%emt 0:00:00]} Rg8 {
[%emt 0:10:58]} 15. f3 {[%emt 0:00:00]} h5 {[%emt 1:18:28]} 16. Be2 {[%emt 0:
07:30]} g4 {[%emt 0:00:00]} 17. fxg4 {[%emt 0:00:00]} hxg4 {[%emt 0:00:00]} 18.
hxg4 {[%emt 0:00:00]} O-O-O {[%emt 0:01:30]} 19. Rf4 {[%emt 0:01:30]} Rg7 {
[%emt 0:00:30]} 20. Raf1 {[%emt 0:00:00]} Rh8 21. R1f2 {[%emt 0:01:00]} Nf8 {
[%emt 0:00:00]} 22. g3 Ne4 {[%emt 0:01:30]} 23. Rxe4 {[%emt 0:01:00]} dxe4 {
[%emt 0:00:00]} 24. Nxe4 {[%emt 0:00:30]} Qc7 {[%emt 0:00:00]} 25. Qb4 {
[%emt 0:00:30]} a5 {[%emt 0:01:30]} 26. Qd6 {[%emt 0:00:30]} Bxa2 {[%emt 0:00:
30]} 27. Qf6 {[%emt 0:00:30]} Ne6 {[%emt 0:00:30]} 28. Bf3 {[%emt 0:00:30]} Bd5
{[%emt 0:00:00]} 29. Nf1 {[%emt 0:00:30]} Rgh7 {[%emt 0:00:00]} 30. g5 {
[%emt 0:00:00]} Rg8 {[%emt 0:00:00]} 31. Qf5 {[%emt 0:00:00]} Rhg7 {[%emt 0:00:
00]} 32. Bh5 {[%emt 0:00:31]} Kb8 {[%emt 0:02:30]} 33. Nf6 {[%emt 0:01:29]}
Rxg5 {[%emt 0:00:30]} 34. Nxd5 {[%emt 0:00:30]} Rxf5 {[%emt 0:00:00]} 35. Nxc7
{[%emt 0:00:30]} Rxf2 {[%emt 0:00:00]} 36. Na6+ {[%emt 0:00:30]} Ka7 {[%emt 0:
00:00]} 37. Kxf2 {[%emt 0:00:00]} Kxa6 {[%emt 0:00:00]} 38. Nd2 {[%emt 0:01:00]
} Rh8 {[%emt 0:00:00]} 39. Be2+ {[%emt 0:00:00]} b5 {[%emt 0:03:00]} 40. Ne4 {
[%emt 0:01:00]} Rh2+ {[%emt 0:00:00]} 41. Ke1 {[%emt 0:30:30]} Kb6 {[%emt 0:06:
53]} 42. Kd1 a4 {[%emt 0:24:37]} 43. Kd2 {[%emt 0:01:00]} Kc7 {[%emt 0:00:00]}
44. g4 Kd7 {[%emt 0:01:00]} 45. Kd3 {[%emt 0:01:00]} Ke7 {[%emt 0:00:30]} 46.
Kd2 {[%emt 0:00:00]} Nc7 {[%emt 0:00:00]} 47. Ng5 {[%emt 0:01:00]} b4 {[%emt 0:
00:00]} 48. Ne4 {[%emt 0:00:00]} Nd5 {[%emt 0:00:00]} 49. Nc5 {[%emt 0:00:00]}
a3 {[%emt 0:02:00]} 50. bxa3 {[%emt 0:01:30]} Nc3 {[%emt 0:00:30]} 51. axb4 {
[%emt 0:00:00]} Nxe2 {[%emt 0:00:00]} 52. Kd3 {[%emt 0:01:00]} Nc1+ {[%emt 0:
01:00]} 53. Kc3 {[%emt 0:00:30]} Rg2 {[%emt 0:00:30]} 54. e4 {[%emt 0:00:30]}
Rg3+ {[%emt 0:00:30]} 55. Kc4 {[%emt 0:00:00]} Ne2 56. Nd3 {[%emt 0:01:00]} Kd6
{[%emt 0:01:00]} 57. g5 {[%emt 0:00:00]} Kc7 58. d5 cxd5+ {[%emt 0:00:00]} 59.
exd5 {[%emt 0:00:00]} Rxg5 {[%emt 0:00:00]} 60. Nc5 {[%emt 0:00:00]} Rg4+ {
[%emt 0:00:00]} 61. Kd3 {[%emt 0:00:00]} Nf4+ {[%emt 0:00:00]} 62. Ke4 {
[%emt 0:00:00]} Ng6+ {[%emt 0:00:00]} 63. Kf5 {[%emt 0:00:00]} Rf4+ {[%emt 0:
00:00]} 64. Kg5 {[%emt 0:00:00]} Kd6 {[%emt 0:00:00]} 65. Nd3 {[%emt 0:00:00]}
Rd4 {[%emt 0:00:00]} 66. Nf2 {[%emt 0:00:00]} Rxb4 {[%emt 0:00:00]} 67. Ng4 {
[%emt 0:00:00]} Rxg4+ {[%emt 0:00:00]} 68. Kxg4 {[%emt 0:00:00]} Kxd5 {[%emt 0:
00:00]} 69. Kf5 {[%emt 0:00:00]} Ne5 {[%emt 0:00:00]} 0-1

[Event "25th European Club Cup Women 2021"]
[Site "Struga"]
[Date "2021.09.20"]
[Round "3.7"]
[White "Urh, Zala"]
[Black "Badelka, Olga"]
[Result "0-1"]
[ECO "D38"]
[WhiteElo "2234"]
[BlackElo "2422"]
[Annotator "NA"]
[PlyCount "86"]
[EventDate "2021.09.18"]
[EventType "team-tourn"]
[EventCountry "MKD"]
[SourceTitle "playchess.com"]
[Source "ChessBase"]
[SourceQuality "1"]
[TimeControl "40/5400+30:1800+30"]

1. d4 {[%emt 0:00:06]} Nf6 {[%emt 0:00:07]} 2. c4 {[%emt 0:00:08]} e6 {[%emt 0:
00:05]} 3. Nf3 {[%emt 0:00:07]} d5 {[%emt 0:00:10]} 4. Nc3 {[%emt 0:00:13]} Bb4
{[%emt 0:00:07]} 5. cxd5 {[%emt 0:00:07]} exd5 {[%emt 0:00:17]} 6. Bf4 {
[%emt 0:00:24]} O-O {[%emt 0:01:34]} 7. e3 {[%emt 0:00:40]} c6 {[%emt 0:03:40]}
8. Rc1 {[%emt 0:01:27]} Re8 {[%emt 0:01:21]} 9. Bd3 {[%emt 0:04:57]} Nbd7 {
[%emt 0:02:25]} 10. O-O {[%emt 0:02:34]} Nf8 {[%emt 0:01:04]} 11. a3 {[%emt 0:
03:47]} Bd6 {[%emt 0:00:39]} 12. Ne5 {[%emt 0:06:34]} Ng6 {[%emt 0:03:02]} 13.
Nxg6 {[%emt 0:06:34]} hxg6 {[%emt 0:04:49]} 14. Bg3 {[%emt 0:00:56]} Bxg3 {
[%emt 0:02:33]} 15. hxg3 {[%emt 0:00:46]} Bf5 {[%emt 0:01:42]} 16. Bxf5 {
[%emt 0:04:22]} gxf5 {[%emt 0:00:06]} 17. Qf3 {[%emt 0:00:58]} g6 {[%emt 0:01:
08]} 18. b4 {[%emt 0:02:06]} Kg7 {[%emt 0:02:46]} 19. b5 {[%emt 0:08:23]} Rc8 {
[%emt 0:06:33]} 20. bxc6 {[%emt 0:04:17]} Rxc6 {[%emt 0:00:25]} 21. Na4 {
[%emt 0:04:18]} Qd6 {[%emt 0:08:26]} 22. Rxc6 {[%emt 0:13:21]} Qxc6 {[%emt 0:
00:04]} 23. Qd1 {[%emt 0:00:14]} b6 {[%emt 0:01:59]} 24. Nb2 {[%emt 0:05:36]}
Qc3 {[%emt 0:01:35]} 25. Qa1 {[%emt 0:01:12]} Rh8 {[%emt 0:11:36]} 26. Rd1 {
[%emt 0:08:39]} Qc2 {[%emt 0:00:29]} 27. Qc1 {[%emt 0:14:21]} Qe2 {[%emt 0:00:
12]} 28. f3 {[%emt 0:00:06]} Nh5 {[%emt 0:12:45]} 29. Qd2 {[%emt 0:03:06]} Qa6
{[%emt 0:00:06]} 30. Kf2 {[%emt 0:02:10]} Qxa3 {[%emt 0:00:35]} 31. Nd3 {
[%emt 0:00:49]} Qd6 {[%emt 0:02:16]} 32. Nf4 {[%emt 0:00:09]} Nxf4 {[%emt 0:08:
51]} 33. exf4 {[%emt 0:00:07]} b5 {[%emt 0:01:23]} 34. Qa2 {[%emt 0:01:35]} Qc6
{[%emt 0:03:53]} 35. Re1 {[%emt 0:01:06]} a6 {[%emt 0:02:04]} 36. Re5 {[%emt 0:
01:12]} Qc4 {[%emt 0:01:18]} 37. Qa1 {[%emt 0:00:16]} b4 {[%emt 0:02:03]} 38.
g4 {[%emt 0:00:12]} fxg4 {[%emt 0:06:55]} 39. fxg4 {[%emt 0:00:10]} b3 {
[%emt 0:01:31]} 40. f5 {[%emt 0:00:00]} Rb8 {[%emt 0:00:00]} 41. fxg6 {[%emt 0:
04:05]} b2 {[%emt 0:01:47]} 42. Qh1 {[%emt 0:00:13]} Qxd4+ {[%emt 0:00:23]} 43.
Re3 {[%emt 0:00:05]} Rh8 {[%emt 0:01:19]} 0-1

[Event "25th European Club Cup Women 2021"]
[Site "Struga"]
[Date "2021.09.20"]
[Round "3.10"]
[White "Muzychuk, Mariya"]
[Black "Radeva, Viktoria"]
[Result "1-0"]
[ECO "B42"]
[WhiteElo "2540"]
[BlackElo "2350"]
[Annotator "ChessBase"]
[PlyCount "115"]
[EventDate "2021.09.18"]
[EventType "team-tourn"]
[EventCountry "MKD"]
[SourceTitle "playchess.com"]
[Source "ChessBase"]
[SourceQuality "1"]
[TimeControl "40/5400+30:1800+30"]

1. e4 {[%emt 0:00:03]} c5 {[%emt 0:00:05]} 2. Nf3 {[%emt 0:00:07]} e6 {[%emt 0:
00:05]} 3. d4 {[%emt 0:00:34]} cxd4 {[%emt 0:00:07]} 4. Nxd4 {[%emt 0:00:03]}
a6 {[%emt 0:00:08]} 5. Bd3 {[%emt 0:00:54]} Nf6 {[%emt 0:00:43]} 6. O-O {
[%emt 0:00:32]} d6 {[%emt 0:00:49]} 7. c4 {[%emt 0:00:40]} g6 {[%emt 0:03:47]}
8. Nc3 {[%emt 0:00:22]} Bg7 {[%emt 0:00:18]} 9. Nf3 {[%emt 0:00:33]} O-O {
[%emt 0:03:40]} 10. Be2 {[%emt 0:00:15]} Qc7 {[%emt 0:03:40]} 11. Bf4 {[%emt 0:
00:23]} Rd8 {[%emt 0:10:16]} 12. Qd2 {[%emt 0:00:09]} e5 {[%emt 0:04:57]} 13.
Bg5 {[%emt 0:04:15]} Be6 {[%emt 0:01:09]} 14. Rfd1 {[%emt 0:01:47]} Nc6 {
[%emt 0:05:46]} 15. Rac1 {[%emt 0:00:52]} Ne7 {[%emt 0:02:07]} 16. h3 {[%emt 0:
07:27]} Rac8 {[%emt 0:03:57]} 17. b3 {[%emt 0:01:26]} b6 {[%emt 0:12:46]} 18.
Qe3 {[%emt 0:25:55]} Qb7 {[%emt 0:05:28]} 19. Ne1 {[%emt 0:03:56]} Rd7 {
[%emt 0:06:18]} 20. Nc2 {[%emt 0:01:49]} Ne8 {[%emt 0:14:11]} 21. Nb4 {[%emt 0:
06:01]} Nc6 {[%emt 0:02:25]} 22. Nxc6 {[%emt 0:04:12]} Rxc6 {[%emt 0:00:16]}
23. Nd5 {[%emt 0:03:43]} Bxd5 {[%emt 0:04:56]} 24. cxd5 {[%emt 0:01:22]} Rxc1 {
[%emt 0:01:10]} 25. Rxc1 {[%emt 0:00:04]} f6 {[%emt 0:02:12]} 26. Bh4 {[%emt 0:
01:41]} Rc7 {[%emt 0:01:54]} 27. Rxc7 {[%emt 0:04:00]} Nxc7 {[%emt 0:00:08]}
28. f3 {[%emt 0:00:25]} b5 {[%emt 0:02:56]} 29. Bf2 {[%emt 0:00:33]} Kf7 {
[%emt 0:02:33]} 30. Qb6 {[%emt 0:00:22]} Qxb6 {[%emt 0:00:11]} 31. Bxb6 {
[%emt 0:00:03]} Na8 {[%emt 0:01:42]} 32. Ba5 {[%emt 0:00:32]} Bh6 {[%emt 0:00:
46]} 33. Kf2 {[%emt 0:00:46]} Bc1 {[%emt 0:01:37]} 34. a4 {[%emt 0:00:06]} Ba3
{[%emt 0:00:31]} 35. axb5 {[%emt 0:00:59]} Bc5+ {[%emt 0:00:05]} 36. Kf1 {
[%emt 0:00:58]} axb5 {[%emt 0:00:05]} 37. Bxb5 {[%emt 0:00:06]} Nb6 {[%emt 0:
00:28]} 38. Ke2 {[%emt 0:01:52]} Ke7 {[%emt 0:00:42]} 39. Bd2 {[%emt 0:02:45]}
Kd8 {[%emt 0:04:00]} 40. g3 {[%emt 0:00:00]} Nc8 {[%emt 0:00:00]} 41. f4 {
[%emt 0:08:47]} Ke7 {[%emt 0:10:01]} 42. Kf3 {[%emt 0:01:04]} Nb6 {[%emt 0:01:
31]} 43. Bc6 {[%emt 0:00:47]} Nc8 {[%emt 0:02:46]} 44. h4 {[%emt 0:00:36]} Bd4
{[%emt 0:03:37]} 45. f5 {[%emt 0:00:39]} Kf7 {[%emt 0:02:32]} 46. Bd7 {[%emt 0:
03:29]} Nb6 {[%emt 0:01:44]} 47. Be6+ {[%emt 0:00:25]} Ke7 {[%emt 0:04:27]} 48.
g4 {[%emt 0:00:40]} Nd7 {[%emt 0:01:16]} 49. Bxd7 {[%emt 0:01:29]} Kxd7 {
[%emt 0:00:04]} 50. fxg6 {[%emt 0:00:06]} hxg6 {[%emt 0:00:04]} 51. h5 {
[%emt 0:00:05]} gxh5 {[%emt 0:00:21]} 52. gxh5 {[%emt 0:00:03]} Ke7 {[%emt 0:
00:15]} 53. Kg4 {[%emt 0:00:13]} Kf7 {[%emt 0:00:12]} 54. Kf5 {[%emt 0:00:07]}
Bc5 {[%emt 0:00:38]} 55. b4 {[%emt 0:00:16]} Bd4 {[%emt 0:00:11]} 56. b5 {
[%emt 0:00:26]} Bb6 {[%emt 0:00:22]} 57. h6 {[%emt 0:00:12]} Bc7 {[%emt 0:00:
12]} 58. Be3 {[%emt 0:00:10]} 1-0

[Event "25th European Club Cup Women 2021"]
[Site "Struga"]
[Date "2021.09.20"]
[Round "3.12"]
[White "Buksa, Nataliya"]
[Black "Krasteva, Beloslava"]
[Result "0-1"]
[ECO "B81"]
[WhiteElo "2417"]
[BlackElo "2217"]
[Annotator "NA"]
[PlyCount "58"]
[EventDate "2021.09.18"]
[EventType "team-tourn"]
[EventCountry "MKD"]
[SourceTitle "playchess.com"]
[Source "ChessBase"]
[SourceQuality "1"]
[TimeControl "40/5400+30:1800+30"]

1. e4 {[%emt 0:00:02]} c5 {[%emt 0:00:11]} 2. Nf3 {[%emt 0:00:06]} d6 {[%emt 0:
00:05]} 3. d4 {[%emt 0:00:03]} cxd4 {[%emt 0:00:04]} 4. Nxd4 {[%emt 0:00:02]}
Nf6 {[%emt 0:00:08]} 5. Nc3 {[%emt 0:00:04]} a6 {[%emt 0:00:05]} 6. h3 {
[%emt 0:00:15]} e6 {[%emt 0:00:09]} 7. g4 {[%emt 0:00:05]} Be7 {[%emt 0:00:04]}
8. g5 {[%emt 0:00:06]} Nfd7 {[%emt 0:00:05]} 9. h4 {[%emt 0:00:04]} b5 {
[%emt 0:00:46]} 10. a3 {[%emt 0:00:04]} Bb7 {[%emt 0:00:06]} 11. Be3 {[%emt 0:
00:05]} Nc6 {[%emt 0:00:10]} 12. Rg1 {[%emt 0:00:04]} Rc8 {[%emt 0:02:44]} 13.
f4 {[%emt 0:00:13]} O-O {[%emt 0:00:45]} 14. h5 {[%emt 0:00:11]} Na5 {[%emt 0:
01:16]} 15. h6 {[%emt 0:18:09]} g6 {[%emt 0:02:46]} 16. f5 {[%emt 0:08:23]}
exf5 {[%emt 0:03:29]} 17. exf5 {[%emt 0:00:58]} Re8 {[%emt 0:05:00]} 18. Kf2 {
[%emt 0:05:47]} Nc4 {[%emt 0:07:01]} 19. Bxc4 {[%emt 0:12:52]} Rxc4 {[%emt 0:
00:10]} 20. Nf3 {[%emt 0:08:09]} Qc8 {[%emt 0:05:03]} 21. Nd5 {[%emt 0:09:43]}
Bd8 {[%emt 0:19:27]} 22. c3 {[%emt 0:19:18]} Ne5 {[%emt 0:04:56]} 23. fxg6 {
[%emt 0:07:56]} fxg6 {[%emt 0:02:03]} 24. Nxe5 {[%emt 0:00:16]} Rxe5 {[%emt 0:
01:57]} 25. Nf4 {[%emt 0:01:11]} Bb6 {[%emt 0:04:50]} 26. Bd4 {[%emt 0:01:59]}
Bxd4+ {[%emt 0:02:08]} 27. cxd4 {[%emt 0:00:04]} Rc2+ {[%emt 0:00:16]} 28. Kf1
{[%emt 0:00:03]} Qc4+ {[%emt 0:01:35]} 29. Nd3 {[%emt 0:00:40]} Qf7+ {[%emt 0:
01:47]} 0-1

[Event "25th European Club Cup Women 2021"]
[Site "Struga"]
[Date "2021.09.20"]
[Round "3.14"]
[White "Atalik, Ekaterina"]
[Black "Toncheva, Nadya"]
[Result "1-0"]
[ECO "D02"]
[WhiteElo "2429"]
[BlackElo "2178"]
[Annotator "NA"]
[PlyCount "47"]
[EventDate "2021.09.18"]
[EventType "team-tourn"]
[EventCountry "MKD"]
[SourceTitle "playchess.com"]
[Source "ChessBase"]
[SourceQuality "1"]
[TimeControl "40/5400+30:1800+30"]

1. d4 {[%emt 0:00:05]} d5 {[%emt 0:02:40]} 2. Nf3 {[%emt 0:00:25]} Nf6 {
[%emt 0:00:05]} 3. Bf4 {[%emt 0:00:06]} c5 {[%emt 0:00:04]} 4. e3 {[%emt 0:00:
18]} Nc6 {[%emt 0:00:05]} 5. Nbd2 {[%emt 0:00:25]} Qb6 {[%emt 0:00:29]} 6. dxc5
{[%emt 0:00:25]} Qxb2 {[%emt 0:00:28]} 7. Rb1 {[%emt 0:00:25]} Qc3 {[%emt 0:00:
11]} 8. Bb5 {[%emt 0:00:41]} e6 {[%emt 0:01:27]} 9. Be5 {[%emt 0:01:26]} Qxc5 {
[%emt 0:04:32]} 10. c4 {[%emt 0:02:48]} Bd7 {[%emt 0:08:48]} 11. Bxf6 {[%emt 0:
06:28]} gxf6 {[%emt 0:00:07]} 12. cxd5 {[%emt 0:00:23]} Qxd5 {[%emt 0:03:22]}
13. O-O {[%emt 0:04:34]} Nd8 {[%emt 0:24:40]} 14. Qa4 {[%emt 0:19:55]} a6 {
[%emt 0:07:48]} 15. Bxd7+ {[%emt 0:00:07]} Qxd7 {[%emt 0:00:03]} 16. Qf4 {
[%emt 0:01:32]} Be7 {[%emt 0:13:13]} 17. Ne4 {[%emt 0:11:45]} f5 {[%emt 0:04:
43]} 18. Rfd1 {[%emt 0:15:21]} Qc6 {[%emt 0:00:04]} 19. Ng3 {[%emt 0:00:35]}
Rc8 {[%emt 0:07:00]} 20. Ne5 {[%emt 0:06:57]} Qc5 {[%emt 0:02:15]} 21. Nd7 {
[%emt 0:07:04]} Qc7 {[%emt 0:01:29]} 22. Qh6 {[%emt 0:01:51]} f6 {[%emt 0:07:
24]} 23. Nh5 {[%emt 0:03:28]} Nc6 {[%emt 0:02:24]} 24. Qg7 {[%emt 0:01:50]} 1-0